[Event "WSTCC-65 2020"]
[Site "Prague"]
[Date "2020.03.06"]
[Round "1.8"]
[White "Nickl, Klaus"]
[Black "Buchal, Stephan"]
[Result "0-1"]
[ECO "A41"]
[WhiteElo "1946"]
[BlackElo "2276"]
[Annotator "ChessBase"]
[PlyCount "76"]
[EventDate "2020.03.06"]
[EventType "team-tourn"]
[EventCountry "CZE"]
[SourceTitle "playchess.com"]
[Source "ChessBase"]
[SourceQuality "1"]
[TimeControl "40/5400+30:1800+30"]

1. d4 {[%emt 0:00:00]} d6 {[%emt 0:00:00]} 2. Nf3 {[%emt 0:00:00]} g6 {[%emt 0:00:00]} 3. Bf4 {[%emt 0:00:08]} Bg7 {[%emt 0:00:03]} 4. e3 {[%emt 0:00:06]} Nd7 {[%emt 0:00:43]} 5. c3 {[%emt 0:02:35]} e5 {[%emt 0:01:16]} 6. dxe5 {[%emt 0:01:43]} dxe5 {[%emt 0:00:32]} 7. Bg3 {[%emt 0:00:18]} Qe7 {[%emt 0:10:13]} 8. Nbd2 {[%emt 0:05:35]} Ngf6 {[%emt 0:07:19]} 9. h3 {[%emt 0:02:35]} O-O {[%emt 0:01:06]} 10. Qc2 {[%emt 0:08:46]} b6 {[%emt 0:06:14]} 11. Be2 {[%emt 0:06:03]} Bb7 {[%emt 0:01:32]} 12. O-O {[%emt 0:00:08]} e4 {[%emt 0:06:40]} 13. Nd4 {[%emt 0:02:20]} Ne5 {[%emt 0:11:40]} 14. Bxe5 {[%emt 0:14:16]} Qxe5 {[%emt 0:00:14]} 15. a4 {[%emt 0:05:21]} a5 {[%emt 0:07:34]} 16. Bb5 {[%emt 0:06:19]} c5 {[%emt 0:07:02]} 17. Nc4 {[%emt 0:02:57]} Qc7 {[%emt 0:03:17]} 18. Ne2 {[%emt 0:00:47]} Nd5 {[%emt 0:03:52]} 19. Rad1 {[%emt 0:03:17]} Rad8 {[%emt 0:04:15]} 20. Na3 {[%emt 0:01:15]} Qe7 {[%emt 0:11:20]} 21. Rd2 {[%emt 0:02:23]} Be5 {[%emt 0:01:16]} 22. Rfd1 {[%emt 0:00:34]} Bc7 {[%emt 0:04:47]} 23. Bc4 {[%emt 0:08:36]} Qe5 {[%emt 0:02:55]} 24. g3 {[%emt 0:03:40]} Nf6 {[%emt 0:02:38]} 25. Rxd8 {[%emt 0:03:01]} Bxd8 {[%emt 0:00:17]} 26. Bb5 {[%emt 0:01:29]} Qf5 {[%emt 0:00:53]} 27. Nf4 {[%emt 0:03:06]} Bc7 {[%emt 0:00:47]} 28. g4 {[%emt 0:05:07]} Qg5 {[%emt 0:00:48]} 29. Ng2 {[%emt 0:06:58]} Qe5 {[%emt 0:00:23]} 30. Nf4 {[%emt 0:01:53]} Qg5 {[%emt 0:00:02]} 31. Ng2 {[%emt 0:00:57]} h5 {[%emt 0:00:14]} 32. Be2 {[%emt 0:00:31]} hxg4 {[%emt 0:00:17]} 33. hxg4 {[%emt 0:00:36]} Bc8 {[%emt 0:03:04]} 34. Nb5 {[%emt 0:01:05]} Bb8 {[%emt 0:00:31]} 35. Nd6 {[%emt 0:00:16]} Bxg4 {[%emt 0:00:38]} 36. Bxg4 {[%emt 0:02:08]} Qxg4 {[%emt 0:00:08]} 37. Kf1 {[%emt 0:00:24]} Rd8 {[%emt 0:01:12]} 38. Rd2 {[%emt 0:00:11]} Rxd6 {[%emt 0:00:12]} 0-1

[Event "WSTCC-65 2020"]
[Site "Prague"]
[Date "2020.03.06"]
[Round "1.12"]
[White "Mozny, Milos"]
[Black "Fencl, Vaclav"]
[Result "1/2-1/2"]
[ECO "A43"]
[WhiteElo "2261"]
[BlackElo "1857"]
[Annotator "ChessBase"]
[PlyCount "36"]
[EventDate "2020.03.06"]
[EventType "team-tourn"]
[EventCountry "CZE"]
[SourceTitle "playchess.com"]
[Source "ChessBase"]
[SourceQuality "1"]
[TimeControl "40/5400+30:1800+30"]

1. d4 {[%emt 0:00:00]} c5 {[%emt 0:00:00]} 2. c3 {[%emt 0:00:34]} e6 {[%emt 0:00:38]} 3. Nf3 {[%emt 0:00:12]} d5 {[%emt 0:01:19]} 4. Bf4 {[%emt 0:00:28]} Bd6 {[%emt 0:01:16]} 5. Bg3 {[%emt 0:00:26]} Nf6 {[%emt 0:01:35]} 6. e3 {[%emt 0:00:39]} O-O {[%emt 0:01:39]} 7. Nbd2 {[%emt 0:02:47]} b6 {[%emt 0:02:56]} 8. Ne5 {[%emt 0:02:15]} Qc7 {[%emt 0:07:13]} 9. f4 {[%emt 0:04:35]} Ba6 {[%emt 0:01:57]} 10. Bxa6 {[%emt 0:00:52]} Nxa6 {[%emt 0:00:06]} 11. O-O {[%emt 0:00:33]} Rac8 {[%emt 0:01:49]} 12. Bh4 {[%emt 0:10:31]} Be7 {[%emt 0:02:15]} 13. f5 {[%emt 0:02:16]} Nb8 {[%emt 0:03:09]} 14. Bxf6 {[%emt 0:16:22]} Bxf6 {[%emt 0:01:02]} 15. Ng4 {[%emt 0:00:11]} Nd7 {[%emt 0:02:48]} 16. Nxf6+ {[%emt 0:24:50]} Nxf6 {[%emt 0:01:01]} 17. fxe6 {[%emt 0:00:34]} fxe6 {[%emt 0:00:42]} 18. Qb3 {[%emt 0:00:09]} Ng4 1/2-1/2

[Event "WSTCC-65 2020"]
[Site "Prague"]
[Date "2020.03.06"]
[Round "1.13"]
[White "Stebbings, Anthony J"]
[Black "Mojzis, Jaroslav"]
[Result "1/2-1/2"]
[ECO "A17"]
[WhiteElo "2313"]
[BlackElo "2074"]
[Annotator "ChessBase"]
[PlyCount "83"]
[EventDate "2020.03.06"]
[EventType "team-tourn"]
[EventCountry "CZE"]
[SourceTitle "playchess.com"]
[Source "ChessBase"]
[SourceQuality "1"]
[TimeControl "40/5400+30:1800+30"]

1. c4 {[%emt 0:00:00]} Nf6 {[%emt 0:00:00]} 2. Nc3 {[%emt 0:00:00]} e6 {[%emt 0:00:00]} 3. Nf3 {[%emt 0:00:00]} Bb4 {[%emt 0:02:17]} 4. Qc2 {[%emt 0:00:00]} d6 {[%emt 0:05:54]} 5. a3 {[%emt 0:01:03]} Bxc3 {[%emt 0:00:27]} 6. Qxc3 {[%emt 0:00:04]} e5 {[%emt 0:00:30]} 7. d3 {[%emt 0:05:37]} O-O {[%emt 0:00:49]} 8. e3 {[%emt 0:00:49]} Re8 {[%emt 0:01:12]} 9. b4 {[%emt 0:02:52]} Bg4 {[%emt 0:05:07]} 10. Be2 {[%emt 0:00:47]} Nbd7 {[%emt 0:01:02]} 11. Bb2 {[%emt 0:01:23]} Nf8 {[%emt 0:06:40]} 12. O-O {[%emt 0:00:20]} Ne6 {[%emt 0:00:25]} 13. Rfe1 {[%emt 0:01:59]} e4 {[%emt 0:01:26]} 14. Nd2 {[%emt 0:07:38]} Bxe2 {[%emt 0:01:01]} 15. Rxe2 {[%emt 0:00:04]} exd3 {[%emt 0:00:20]} 16. Qxd3 {[%emt 0:00:40]} Qe7 {[%emt 0:01:46]} 17. Ree1 {[%emt 0:02:06]} Rad8 {[%emt 0:02:22]} 18. e4 {[%emt 0:01:38]} c6 {[%emt 0:09:57]} 19. Qe3 {[%emt 0:11:59]} a6 {[%emt 0:02:44]} 20. Rad1 {[%emt 0:07:27]} h6 {[%emt 0:04:21]} 21. Nf1 {[%emt 0:05:25]} Ng4 {[%emt 0:15:14]} 22. Qg3 {[%emt 0:05:37]} Nf6 {[%emt 0:00:47]} 23. f3 {[%emt 0:03:46]} Nh5 {[%emt 0:03:54]} 24. Qg4 {[%emt 0:02:16]} Qg5 {[%emt 0:05:49]} 25. Ne3 {[%emt 0:00:36]} Qxg4 {[%emt 0:02:20]} 26. fxg4 {[%emt 0:01:21]} Nhf4 {[%emt 0:07:58]} 27. Nf5 {[%emt 0:01:10]} Ng5 {[%emt 0:03:16]} 28. Nxd6 {[%emt 0:05:52]} Re6 {[%emt 0:00:19]} 29. e5 {[%emt 0:04:42]} Rd7 {[%emt 0:02:26]} 30. h4 {[%emt 0:02:22]} Nh7 {[%emt 0:00:19]} 31. Nf5 {[%emt 0:08:58]} Nf8 {[%emt 0:05:30]} 32. Rxd7 {[%emt 0:05:23]} Nxd7 {[%emt 0:00:09]} 33. Re3 {[%emt 0:06:36]} Nb6 {[%emt 0:00:28]} 34. Re4 {[%emt 0:01:52]} Nd3 {[%emt 0:01:23]} 35. Ba1 {[%emt 0:01:09]} Nd7 {[%emt 0:02:34]} 36. Nd6 {[%emt 0:00:39]} b5 {[%emt 0:00:34]} 37. cxb5 {[%emt 0:00:17]} cxb5 {[%emt 0:00:12]} 38. Nb7 {[%emt 0:01:10]} N3xe5 {[%emt 0:01:55]} 39. Bxe5 {[%emt 0:00:35]} Rxe5 {[%emt 0:00:39]} 40. Nc5 {[%emt 0:00:00]} Rxe4 {[%emt 0:00:00]} 41. Nxe4 {[%emt 0:02:27]} Kf8 {[%emt 0:01:36]} 42. Kf2 {[%emt 0:00:23]} 1/2-1/2

[Event "WSTCC-65 2020"]
[Site "Prague"]
[Date "2020.03.06"]
[Round "1.14"]
[White "Navratil, Frantisek"]
[Black "Page, Mark E"]
[Result "1/2-1/2"]
[ECO "B92"]
[WhiteElo "2124"]
[BlackElo "2135"]
[Annotator "NA"]
[PlyCount "44"]
[EventDate "2020.03.06"]
[EventType "team-tourn"]
[EventCountry "CZE"]
[SourceTitle "playchess.com"]
[Source "ChessBase"]
[SourceQuality "1"]
[TimeControl "40/5400+30:1800+30"]

1. e4 {[%emt 0:00:00]} c5 {[%emt 0:00:00]} 2. Nf3 {[%emt 0:00:00]} d6 {[%emt 0:00:00]} 3. d4 {[%emt 0:00:00]} cxd4 {[%emt 0:00:57]} 4. Nxd4 {[%emt 0:01:07]} Nf6 {[%emt 0:00:07]} 5. Nc3 {[%emt 0:00:20]} a6 {[%emt 0:00:05]} 6. Be2 {[%emt 0:00:55]} e5 {[%emt 0:00:18]} 7. Nb3 {[%emt 0:00:24]} Be7 {[%emt 0:00:09]} 8. Be3 {[%emt 0:00:57]} Be6 {[%emt 0:00:19]} 9. O-O {[%emt 0:00:22]} Nbd7 {[%emt 0:02:54]} 10. f3 {[%emt 0:06:30]} b5 {[%emt 0:04:18]} 11. Qe1 {[%emt 0:09:48]} O-O {[%emt 0:04:28]} 12. Qf2 {[%emt 0:07:33]} b4 {[%emt 0:08:43]} 13. Na4 {[%emt 0:04:45]} Qc7 {[%emt 0:02:36]} 14. Bd3 {[%emt 0:03:16]} Rfb8 15. Nd2 {[%emt 0:06:09]} d5 {[%emt 0:11:26]} 16. exd5 {[%emt 0:07:10]} Nxd5 {[%emt 0:01:15]} 17. Kh1 {[%emt 0:00:53]} Nxe3 {[%emt 0:09:41]} 18. Qxe3 {[%emt 0:00:16]} f5 {[%emt 0:02:13]} 19. Rae1 {[%emt 0:07:43]} Bf6 {[%emt 0:01:39]} 20. b3 {[%emt 0:00:15]} Re8 {[%emt 0:08:36]} 21. Bc4 {[%emt 0:02:11]} g6 {[%emt 0:05:35]} 22. Rd1 {[%emt 0:02:49]} Kg7 {[%emt 0:01:48]} 1/2-1/2

[Event "WSTCC-65 2020"]
[Site "Prague"]
[Date "2020.03.06"]
[Round "1.15"]
[White "Bowmer, Kevin"]
[Black "Trojan, Lubos"]
[Result "1/2-1/2"]
[ECO "C05"]
[WhiteElo "2116"]
[BlackElo "1928"]
[Annotator "ChessBase"]
[PlyCount "82"]
[EventDate "2020.03.06"]
[EventType "team-tourn"]
[EventCountry "CZE"]
[SourceTitle "playchess.com"]
[Source "ChessBase"]
[SourceQuality "1"]
[TimeControl "40/5400+30:1800+30"]

1. e4 {[%emt 0:00:00]} e6 {[%emt 0:00:00]} 2. d4 {[%emt 0:00:00]} d5 {[%emt 0:00:00]} 3. Nd2 {[%emt 0:00:04]} Nf6 {[%emt 0:00:07]} 4. e5 {[%emt 0:00:15]} Nfd7 {[%emt 0:00:05]} 5. c3 {[%emt 0:00:15]} c5 {[%emt 0:00:11]} 6. Bd3 {[%emt 0:00:12]} Nc6 {[%emt 0:00:26]} 7. Ne2 {[%emt 0:00:17]} Qb6 {[%emt 0:01:48]} 8. Nf3 {[%emt 0:00:57]} cxd4 {[%emt 0:00:46]} 9. cxd4 {[%emt 0:00:49]} Bb4+ {[%emt 0:01:38]} 10. Bd2 {[%emt 0:00:46]} Bxd2+ {[%emt 0:00:46]} 11. Qxd2 {[%emt 0:00:18]} Qb4 {[%emt 0:06:40]} 12. Rc1 {[%emt 0:02:34]} Qxd2+ {[%emt 0:01:45]} 13. Kxd2 {[%emt 0:00:27]} O-O {[%emt 0:04:08]} 14. Bb5 {[%emt 0:17:00]} Ndb8 {[%emt 0:00:55]} 15. Nc3 {[%emt 0:07:00]} Bd7 {[%emt 0:01:36]} 16. Bd3 {[%emt 0:17:08]} Ne7 {[%emt 0:07:22]} 17. Nb5 {[%emt 0:06:15]} Bxb5 {[%emt 0:04:19]} 18. Bxb5 {[%emt 0:00:24]} Nbc6 {[%emt 0:01:43]} 19. Rc5 {[%emt 0:05:49]} Rac8 {[%emt 0:05:03]} 20. Rhc1 {[%emt 0:01:14]} a6 {[%emt 0:00:59]} 21. Bd3 {[%emt 0:04:06]} Rfd8 {[%emt 0:07:41]} 22. Ke3 {[%emt 0:04:22]} h6 {[%emt 0:05:18]} 23. h4 {[%emt 0:01:11]} Kf8 {[%emt 0:00:16]} 24. Nd2 {[%emt 0:05:38]} Ke8 {[%emt 0:05:07]} 25. f4 {[%emt 0:00:58]} Kd7 {[%emt 0:05:59]} 26. g4 {[%emt 0:01:09]} h5 {[%emt 0:01:36]} 27. gxh5 {[%emt 0:07:11]} Rh8 {[%emt 0:00:37]} 28. Nf3 {[%emt 0:01:01]} Rxh5 {[%emt 0:03:00]} 29. a3 {[%emt 0:00:56]} g6 {[%emt 0:03:24]} 30. b4 {[%emt 0:00:19]} Rhh8 {[%emt 0:03:48]} 31. Rh1 {[%emt 0:01:09]} b6 {[%emt 0:01:39]} 32. Rcc1 {[%emt 0:01:12]} Nb8 {[%emt 0:00:26]} 33. Rxc8 {[%emt 0:01:44]} Rxc8 {[%emt 0:00:44]} 34. Ng5 {[%emt 0:00:22]} Rc3 {[%emt 0:02:07]} 35. Nxf7 {[%emt 0:00:59]} Nf5+ {[%emt 0:01:13]} 36. Kd2 {[%emt 0:00:15]} Rxa3 {[%emt 0:00:16]} 37. Nh8 {[%emt 0:02:29]} Nc6 {[%emt 0:02:36]} 38. Nxg6 {[%emt 0:00:25]} Ra2+ {[%emt 0:00:08]} 39. Kc3 {[%emt 0:00:50]} Ra3+ {[%emt 0:00:18]} 40. Kd2 {[%emt 0:00:00]} Ra2+ 41. Kc3 {[%emt 0:04:12]} Ra3+ {[%emt 0:01:34]} 1/2-1/2

[Event "WSTCC-65 2020"]
[Site "Prague"]
[Date "2020.03.06"]
[Round "1.16"]
[White "Just, Pavel"]
[Black "Stokes, Michael"]
[Result "1/2-1/2"]
[ECO "C68"]
[WhiteElo "1954"]
[BlackElo "2100"]
[Annotator "ChessBase"]
[PlyCount "53"]
[EventDate "2020.03.06"]
[EventType "team-tourn"]
[EventCountry "CZE"]
[SourceTitle "playchess.com"]
[Source "ChessBase"]
[SourceQuality "1"]
[TimeControl "40/5400+30:1800+30"]

1. e4 {[%emt 0:00:00]} e5 {[%emt 0:00:00]} 2. Nf3 {[%emt 0:00:00]} Nc6 {[%emt 0:00:00]} 3. Bb5 {[%emt 0:00:00]} a6 {[%emt 0:00:00]} 4. Bxc6 {[%emt 0:00:06]} dxc6 {[%emt 0:00:00]} 5. O-O {[%emt 0:00:10]} f6 {[%emt 0:00:00]} 6. d4 {[%emt 0:02:51]} Bg4 {[%emt 0:00:39]} 7. c3 {[%emt 0:03:13]} Bd6 {[%emt 0:04:07]} 8. h3 Bxf3 9. Qxf3 {[%emt 0:24:02]} Ne7 {[%emt 0:01:07]} 10. dxe5 {[%emt 0:03:42]} Bxe5 {[%emt 0:00:04]} 11. Qd1 {[%emt 0:05:41]} Qxd1 {[%emt 0:01:38]} 12. Rxd1 {[%emt 0:00:07]} Ng6 {[%emt 0:00:12]} 13. g3 {[%emt 0:05:22]} Ke7 {[%emt 0:02:04]} 14. f4 {[%emt 0:03:04]} Bd6 {[%emt 0:02:56]} 15. Be3 {[%emt 0:00:14]} h5 {[%emt 0:00:57]} 16. h4 {[%emt 0:01:44]} Kf7 {[%emt 0:01:33]} 17. Nd2 {[%emt 0:03:33]} Rae8 {[%emt 0:03:01]} 18. Re1 {[%emt 0:04:10]} Nf8 {[%emt 0:03:18]} 19. Bf2 {[%emt 0:03:35]} Nd7 {[%emt 0:01:50]} 20. Nf3 {[%emt 0:05:16]} Bc5 {[%emt 0:07:36]} 21. Bd4 {[%emt 0:00:58]} Re7 {[%emt 0:03:26]} 22. Re2 {[%emt 0:00:34]} Rhe8 {[%emt 0:02:00]} 23. Rae1 {[%emt 0:00:11]} Bxd4+ {[%emt 0:05:43]} 24. cxd4 {[%emt 0:01:04]} c5 {[%emt 0:01:15]} 25. d5 {[%emt 0:03:37]} Nb6 {[%emt 0:02:25]} 26. Kf2 {[%emt 0:02:09]} g6 {[%emt 0:01:41]} 27. b3 {[%emt 0:04:06]} 1/2-1/2

[Event "WSTCC-65 2020"]
[Site "Prague"]
[Date "2020.03.06"]
[Round "1.18"]
[White "Maryasin, Boris"]
[Black "Wagner-Michel, Annett"]
[Result "1-0"]
[ECO "B30"]
[WhiteElo "2305"]
[BlackElo "2025"]
[Annotator "ChessBase"]
[PlyCount "61"]
[EventDate "2020.03.06"]
[EventType "team-tourn"]
[EventCountry "CZE"]
[SourceTitle "playchess.com"]
[Source "ChessBase"]
[SourceQuality "1"]
[TimeControl "40/5400+30:1800+30"]

1. e4 {[%emt 0:00:00]} c5 {[%emt 0:00:00]} 2. Nf3 {[%emt 0:00:00]} Nc6 {[%emt 0:00:00]} 3. Bb5 {[%emt 0:00:22]} Nf6 {[%emt 0:00:00]} 4. Qe2 {[%emt 0:02:05]} g6 {[%emt 0:01:46]} 5. Nc3 {[%emt 0:01:55]} Nd4 {[%emt 0:05:40]} 6. Nxd4 {[%emt 0:00:53]} cxd4 {[%emt 0:00:02]} 7. e5 dxc3 {[%emt 0:07:29]} 8. exf6 {[%emt 0:03:01]} e6 {[%emt 0:01:16]} 9. dxc3 {[%emt 0:08:49]} a6 {[%emt 0:06:28]} 10. Ba4 {[%emt 0:01:28]} Qxf6 {[%emt 0:01:07]} 11. Be3 {[%emt 0:00:41]} Qe7 {[%emt 0:27:22]} 12. Bd4 {[%emt 0:05:28]} f6 {[%emt 0:01:21]} 13. O-O {[%emt 0:00:38]} Bh6 {[%emt 0:05:08]} 14. Bc5 {[%emt 0:09:26]} Qf7 {[%emt 0:07:14]} 15. Rfe1 {[%emt 0:02:37]} Bf8 {[%emt 0:08:07]} 16. Qxe6+ {[%emt 0:02:52]} Qxe6 {[%emt 0:00:02]} 17. Rxe6+ {[%emt 0:00:10]} Kf7 {[%emt 0:00:04]} 18. Rxf6+ {[%emt 0:00:19]} Kxf6 {[%emt 0:02:44]} 19. Bd4+ {[%emt 0:00:08]} Kf5 {[%emt 0:01:48]} 20. Bxh8 {[%emt 0:00:20]} b5 {[%emt 0:02:24]} 21. Bb3 {[%emt 0:00:19]} Bb7 {[%emt 0:00:06]} 22. Re1 {[%emt 0:02:06]} Bd6 {[%emt 0:01:05]} 23. Bg7 {[%emt 0:02:20]} Bc6 {[%emt 0:03:06]} 24. h3 {[%emt 0:00:50]} g5 {[%emt 0:00:54]} 25. Bf7 {[%emt 0:03:01]} a5 {[%emt 0:03:59]} 26. Rd1 {[%emt 0:03:08]} Bc5 {[%emt 0:02:37]} 27. Bd4 {[%emt 0:01:16]} Rf8 {[%emt 0:01:57]} 28. g4+ {[%emt 0:04:24]} Kf4 {[%emt 0:02:48]} 29. Bxc5 {[%emt 0:00:29]} Rxf7 {[%emt 0:00:09]} 30. Bd6+ {[%emt 0:00:15]} Ke4 {[%emt 0:02:30]} 31. Kg2 {[%emt 0:00:25]} 1-0

[Event "WSTCC-65 2020"]
[Site "Prague"]
[Date "2020.03.06"]
[Round "1.19"]
[White "Kierzek, Mira"]
[Black "Shevelev, Arkady"]
[Result "0-1"]
[ECO "A46"]
[WhiteElo "1983"]
[BlackElo "2278"]
[Annotator "ChessBase"]
[PlyCount "170"]
[EventDate "2020.03.06"]
[EventType "team-tourn"]
[EventCountry "CZE"]
[SourceTitle "playchess.com"]
[Source "ChessBase"]
[SourceQuality "1"]
[TimeControl "40/5400+30:1800+30"]

1. d4 {[%emt 0:00:00]} Nf6 {[%emt 0:00:00]} 2. Nf3 {[%emt 0:00:00]} d5 {[%emt 0:00:00]} 3. c4 {[%emt 0:00:29]} c5 {[%emt 0:00:03]} 4. cxd5 {[%emt 0:01:01]} cxd4 {[%emt 0:00:09]} 5. Qxd4 {[%emt 0:00:17]} Qxd5 {[%emt 0:00:13]} 6. Nc3 {[%emt 0:00:31]} Qxd4 {[%emt 0:00:12]} 7. Nxd4 {[%emt 0:00:08]} a6 {[%emt 0:00:09]} 8. g3 {[%emt 0:02:22]} e5 {[%emt 0:00:09]} 9. Nc2 {[%emt 0:02:00]} Bf5 {[%emt 0:00:22]} 10. Ne3 {[%emt 0:02:25]} Be6 {[%emt 0:00:11]} 11. Bg2 {[%emt 0:01:01]} Nc6 {[%emt 0:00:09]} 12. O-O {[%emt 0:00:57]} O-O-O {[%emt 0:00:16]} 13. Nc2 {[%emt 0:07:16]} Be7 {[%emt 0:11:49]} 14. h3 {[%emt 0:14:17]} Nd4 {[%emt 0:01:23]} 15. Nxd4 {[%emt 0:09:39]} exd4 {[%emt 0:00:11]} 16. Nb1 {[%emt 0:01:04]} Nd5 {[%emt 0:04:33]} 17. a3 {[%emt 0:02:36]} Kb8 {[%emt 0:01:51]} 18. Rd1 {[%emt 0:03:26]} Nb6 {[%emt 0:02:16]} 19. Bf4+ {[%emt 0:01:52]} Bd6 {[%emt 0:00:16]} 20. Bxd6+ {[%emt 0:05:11]} Rxd6 {[%emt 0:00:07]} 21. Nd2 {[%emt 0:02:37]} f5 {[%emt 0:00:22]} 22. Rac1 {[%emt 0:05:36]} Rhd8 {[%emt 0:01:06]} 23. Re1 {[%emt 0:06:52]} Na4 {[%emt 0:01:23]} 24. Nc4 {[%emt 0:01:48]} R6d7 {[%emt 0:01:11]} 25. Ne5 {[%emt 0:05:28]} Rd6 {[%emt 0:00:38]} 26. Nc4 {[%emt 0:01:37]} Bxc4 {[%emt 0:02:21]} 27. Rxc4 {[%emt 0:01:48]} b5 {[%emt 0:00:21]} 28. Rc2 {[%emt 0:02:18]} Rc8 {[%emt 0:02:07]} 29. Rd2 {[%emt 0:04:12]} Nc5 {[%emt 0:02:00]} 30. Red1 {[%emt 0:02:30]} Nb3 {[%emt 0:03:56]} 31. Rd3 {[%emt 0:00:29]} Rc1 {[%emt 0:02:52]} 32. Bf3 {[%emt 0:06:21]} Rxd1+ {[%emt 0:00:28]} 33. Rxd1 {[%emt 0:00:01]} a5 {[%emt 0:00:55]} 34. Bg2 {[%emt 0:00:56]} Kc7 {[%emt 0:01:40]} 35. Bf1 {[%emt 0:02:14]} a4 {[%emt 0:03:35]} 36. Kg2 {[%emt 0:00:49]} Rc6 {[%emt 0:00:53]} 37. e3 {[%emt 0:02:53]} dxe3 {[%emt 0:00:08]} 38. fxe3 {[%emt 0:00:15]} Rc2+ {[%emt 0:00:07]} 39. Kg1 {[%emt 0:00:27]} Rxb2 {[%emt 0:02:24]} 40. Bxb5 {[%emt 0:00:00]} Nc5 {[%emt 0:00:00]} 41. Bc4 {[%emt 0:07:46]} Rc2 {[%emt 0:00:35]} 42. Bg8 {[%emt 0:02:29]} Rc3 {[%emt 0:00:14]} 43. Rd5 {[%emt 0:04:16]} Ne4 {[%emt 0:04:20]} 44. Rxf5 {[%emt 0:12:04]} Nf6 {[%emt 0:00:12]} 45. Bf7 {[%emt 0:00:43]} Rxe3 {[%emt 0:00:14]} 46. Kg2 {[%emt 0:00:44]} Rxa3 {[%emt 0:00:16]} 47. g4 {[%emt 0:00:30]} Rc3 {[%emt 0:00:54]} 48. Ra5 {[%emt 0:03:15]} a3 {[%emt 0:00:10]} 49. Be6 {[%emt 0:00:33]} Kb6 {[%emt 0:00:34]} 50. Ra8 {[%emt 0:00:11]} h6 {[%emt 0:02:22]} 51. Bf7 {[%emt 0:01:18]} Re3 {[%emt 0:04:09]} 52. Ra4 {[%emt 0:01:12]} Re7 {[%emt 0:00:51]} 53. Bb3 {[%emt 0:00:43]} Ra7 {[%emt 0:00:40]} 54. Rxa7 {[%emt 0:00:11]} Kxa7 {[%emt 0:00:05]} 55. Kf3 {[%emt 0:00:10]} Kb6 {[%emt 0:00:23]} 56. Kf4 {[%emt 0:00:15]} Kc5 {[%emt 0:01:42]} 57. Kf5 {[%emt 0:00:58]} Kb4 {[%emt 0:00:08]} 58. Ba2 {[%emt 0:00:58]} Kc3 {[%emt 0:00:30]} 59. Kg6 {[%emt 0:00:20]} Kb2 {[%emt 0:00:05]} 60. Bc4 {[%emt 0:01:00]} Nd7 {[%emt 0:00:40]} 61. Kxg7 {[%emt 0:01:02]} Nc5 {[%emt 0:00:30]} 62. Kxh6 {[%emt 0:01:17]} Nb3 {[%emt 0:00:09]} 63. Bxb3 {[%emt 0:00:37]} Kxb3 {[%emt 0:00:10]} 64. g5 {[%emt 0:00:02]} a2 {[%emt 0:00:14]} 65. g6 {[%emt 0:00:04]} a1=Q {[%emt 0:00:10]} 66. g7 {[%emt 0:00:07]} Qf6+ {[%emt 0:00:27]} 67. Kh7 {[%emt 0:01:03]} Qf7 {[%emt 0:00:11]} 68. h4 {[%emt 0:00:17]} Qh5+ {[%emt 0:00:35]} 69. Kg8 {[%emt 0:00:11]} Qxh4 {[%emt 0:00:08]} 70. Kf7 {[%emt 0:00:13]} Qh7 {[%emt 0:00:29]} 71. Kf8 {[%emt 0:00:06]} Qf5+ {[%emt 0:00:08]} 72. Ke7 {[%emt 0:00:20]} Qg6 {[%emt 0:00:11]} 73. Kf8 {[%emt 0:00:15]} Qf6+ {[%emt 0:00:07]} 74. Kg8 {[%emt 0:00:14]} Kc4 {[%emt 0:00:07]} 75. Kh7 {[%emt 0:00:10]} Qf7 {[%emt 0:00:11]} 76. Kh8 {[%emt 0:00:26]} Qh5+ {[%emt 0:00:06]} 77. Kg8 {[%emt 0:00:15]} Kd5 {[%emt 0:00:21]} 78. Kf8 {[%emt 0:00:16]} Qf5+ {[%emt 0:00:06]} 79. Ke8 {[%emt 0:01:16]} Qg6+ {[%emt 0:00:16]} 80. Kf8 {[%emt 0:00:10]} Qf6+ {[%emt 0:00:09]} 81. Kg8 {[%emt 0:00:50]} Ke6 {[%emt 0:00:12]} 82. Kh7 {[%emt 0:00:24]} Qf7 {[%emt 0:00:16]} 83. Kh8 {[%emt 0:00:33]} Qh5+ {[%emt 0:00:07]} 84. Kg8 {[%emt 0:00:20]} Kf6 {[%emt 0:00:07]} 85. Kf8 {[%emt 0:00:23]} Qf7# {[%emt 0:00:07]} 0-1

[Event "WSTCC-65 2020"]
[Site "Prague"]
[Date "2020.03.06"]
[Round "1.20"]
[White "Lederman, Leon"]
[Black "Kube, Hannelore"]
[Result "1-0"]
[ECO "C42"]
[WhiteElo "2234"]
[BlackElo "1919"]
[Annotator "ChessBase"]
[PlyCount "59"]
[EventDate "2020.03.06"]
[EventType "team-tourn"]
[EventCountry "CZE"]
[SourceTitle "playchess.com"]
[Source "ChessBase"]
[SourceQuality "1"]
[TimeControl "40/5400+30:1800+30"]

1. e4 {[%emt 0:00:00]} e5 {[%emt 0:00:00]} 2. Nf3 {[%emt 0:00:00]} Nf6 {[%emt 0:00:00]} 3. Nxe5 {[%emt 0:00:00]} d6 {[%emt 0:00:00]} 4. Nf3 {[%emt 0:00:00]} Nxe4 {[%emt 0:00:02]} 5. Nc3 {[%emt 0:00:00]} Nf6 {[%emt 0:00:14]} 6. d4 {[%emt 0:00:12]} Be7 {[%emt 0:00:14]} 7. Bg5 {[%emt 0:00:43]} h6 {[%emt 0:06:26]} 8. Bf4 {[%emt 0:01:15]} Bf5 {[%emt 0:04:09]} 9. Bd3 {[%emt 0:01:37]} Qd7 {[%emt 0:02:05]} 10. h3 {[%emt 0:01:11]} Nc6 {[%emt 0:05:50]} 11. g4 {[%emt 0:07:57]} Bxd3 {[%emt 0:02:05]} 12. Qxd3 {[%emt 0:00:05]} Nb4 {[%emt 0:08:24]} 13. Qe2 {[%emt 0:00:24]} O-O-O {[%emt 0:06:17]} 14. O-O-O {[%emt 0:01:18]} Nfd5 {[%emt 0:12:37]} 15. Nxd5 {[%emt 0:04:22]} Nxd5 {[%emt 0:00:23]} 16. Bd2 {[%emt 0:00:03]} Rde8 {[%emt 0:05:30]} 17. Qd3 {[%emt 0:03:47]} Qc6 {[%emt 0:07:18]} 18. h4 {[%emt 0:07:49]} Nf6 {[%emt 0:04:37]} 19. g5 {[%emt 0:11:51]} Ng4 {[%emt 0:07:02]} 20. Rhf1 {[%emt 0:07:02]} Qd7 {[%emt 0:04:11]} 21. Bf4 {[%emt 0:06:12]} hxg5 {[%emt 0:02:55]} 22. hxg5 {[%emt 0:00:09]} Rh3 {[%emt 0:00:23]} 23. Bg3 {[%emt 0:02:06]} Reh8 {[%emt 0:11:50]} 24. Rde1 {[%emt 0:02:34]} R3h5 {[%emt 0:03:56]} 25. Qd2 {[%emt 0:04:56]} Qf5 {[%emt 0:02:33]} 26. Rxe7 Qxf3 {[%emt 0:00:15]} 27. Qa5 {[%emt 0:00:35]} b6 {[%emt 0:00:41]} 28. Qxa7 {[%emt 0:00:22]} Qc6 {[%emt 0:00:30]} 29. Bxd6 {[%emt 0:07:41]} cxd6 {[%emt 0:00:34]} 30. d5 {[%emt 0:00:05]} 1-0